fUSD/lending_fUSD_20260224
["ID","MTS","AMOUNT","RATE_DAILY","PERIOD"]
[406590466,1771959040864,-3365.53,0.00015393,2]
[406590467,1771959040873,-3226.58210254,0.00015436,2]
[406590468,1771959040882,-32552.9942183,0.00015583,2]
[406590469,1771959040891,-700.21212036,0.00015648,2]
[406590470,1771959040899,-3365.53,0.00015747,2]
[406590471,1771959040908,-4589.99,0.00015862,2]
[406590472,1771959040917,-32552.9942183,0.00015872,2]
[406590473,1771959040927,-3365.53,0.00016101,2]
[406590474,1771959040936,-32552.9942183,0.00016162,2]
[406590475,1771959040945,-500.0,0.0001619,2]
[406590476,1771959040954,-500.0,0.0001619,2]
[406590477,1771959040963,-500.0,0.0001619,2]
[406590478,1771959040973,-500.0,0.0001619,2]
[406590479,1771959040982,-3226.58210254,0.00016257,2]
[406590480,1771959040991,-500.0,0.00016422,2]
[406590481,1771959041000,-500.0,0.00016422,2]
[406590482,1771959041010,-753.78,0.00016422,2]
[406590483,1771959041019,-500.0,0.00016422,2]
[406590484,1771959041027,-4589.99,0.00016442,2]
[406590485,1771959041036,-32552.9942183,0.00016452,2]
[406590486,1771959041046,-3365.53,0.00016454,2]
[406590487,1771959041055,-1000.0,0.000166,2]
[406590488,1771959041064,-500.0,0.0001674,2]
[406590489,1771959041073,-500.0,0.0001674,2]
[406590490,1771959041081,-500.0,0.0001674,2]
[406590491,1771959041090,-500.0,0.0001674,2]
[406590492,1771959041099,-500.0,0.0001674,2]
[406590493,1771959041108,-505.48582718,0.0001674,2]
[406590494,1771959041117,-500.0,0.0001674,2]
[406590495,1771959041126,-474.02245772,0.0001674,2]
[406590496,1771959041135,-500.0,0.0001674,2]
[406590497,1771959041144,-500.0,0.0001674,2]
[406590498,1771959041153,-500.0,0.0001674,2]
[406590499,1771959041162,-500.0,0.0001674,2]
[406590500,1771959041171,-452.36412376,0.0001674,2]
[406590501,1771959041180,-500.0,0.0001674,2]
[406590502,1771959041189,-500.0,0.0001674,2]
[406590503,1771959041198,-500.0,0.0001674,2]
[406590504,1771959041207,-500.0,0.0001674,2]
[406590505,1771959041216,-272.90028232,0.0001674,2]
[406590506,1771959041227,-500.0,0.0001674,2]
[406590507,1771959041236,-500.0,0.0001674,2]
[406590508,1771959041245,-500.0,0.0001674,2]
[406590509,1771959041255,-500.0,0.0001674,2]
[406590510,1771959041265,-649.90896009,0.0001674,2]
[406590511,1771959041274,-500.0,0.0001674,2]
[406590512,1771959041282,-500.0,0.0001674,2]
[406590513,1771959041291,-500.0,0.0001674,2]
[406590514,1771959041302,-500.0,0.0001674,2]
[406590515,1771959041311,-500.0,0.0001674,2]
[406590516,1771959041320,-500.0,0.0001674,2]
[406590517,1771959041329,-500.0,0.0001674,2]
[406590518,1771959041338,-500.0,0.0001674,2]
[406590519,1771959041347,-500.0,0.0001674,2]
[406590520,1771959041356,-500.0,0.0001674,2]
[406590521,1771959041365,-500.0,0.0001674,2]
[406590522,1771959041374,-500.0,0.0001674,2]
[406590523,1771959041383,-500.0,0.0001674,2]
[406590524,1771959041393,-500.0,0.0001674,2]
[406590525,1771959041402,-500.0,0.0001674,2]
[406590526,1771959041411,-500.0,0.0001674,2]
[406590527,1771959041420,-500.0,0.0001674,2]
[406590528,1771959041430,-500.0,0.0001674,2]
[406590529,1771959041440,-500.0,0.0001674,2]
[406590530,1771959041450,-500.0,0.0001674,2]
[406590531,1771959041459,-500.0,0.0001674,2]
[406590532,1771959041471,-500.0,0.0001674,2]
[406590533,1771959041481,-500.0,0.0001674,2]
[406590534,1771959041490,-500.0,0.0001674,2]
[406590535,1771959041501,-500.0,0.0001674,2]
[406590536,1771959041510,-500.0,0.0001674,2]
[406590537,1771959041521,-500.0,0.0001674,2]
[406590538,1771959041530,-500.0,0.0001674,2]
[406590539,1771959041540,-32552.9942183,0.00016741,2]
[406590540,1771959041550,-349.61855538,0.00016784,2]
[406590541,1771959041560,-3365.53,0.00016808,2]
[406590542,1771959041570,-4589.99,0.00016833,2]
[406590543,1771959041580,-500.0,0.00016999,2]
[406590544,1771959041589,-500.0,0.00016999,2]
[406590545,1771959041598,-500.0,0.00016999,2]
[406590546,1771959041607,-500.0,0.00016999,2]
[406590547,1771959041616,-500.0,0.00016999,2]
[406590548,1771959041626,-500.0,0.00016999,2]
[406590549,1771959041635,-500.0,0.00016999,2]
[406590550,1771959041644,-500.0,0.00016999,2]
[406590551,1771959041655,-500.0,0.00016999,2]
[406590552,1771959041664,-500.0,0.00016999,2]
[406590553,1771959041675,-500.0,0.00016999,2]
[406590554,1771959041684,-500.0,0.00016999,2]
[406590555,1771959041695,-500.0,0.00016999,2]
[406590556,1771959041704,-500.0,0.00016999,2]
[406590557,1771959041715,-500.0,0.00016999,2]
[406590558,1771959041725,-500.0,0.00016999,2]
[406590559,1771959041734,-32552.9942183,0.00017031,2]
[406590560,1771959041744,-3226.58210254,0.00017079,2]
[406590561,1771959041753,-32552.9942183,0.00017321,2]
[406590562,1771959041763,-5000.0,0.00017376,2]
[406590563,1771959041772,-580.92508774,0.00017376,2]
[406590564,1771959041783,-1358.73171243,0.00017376,2]
[406590565,1771959041794,-5895.49730253,0.00017463,5]
[406590566,1771959041805,-500.0,0.00017465,2]
[406590567,1771959041815,-500.0,0.00017465,2]
[406590568,1771959041825,-753.78,0.00017465,2]
[406590569,1771959041834,-500.0,0.00017465,2]
[406590570,1771959041844,-500.0,0.00017474,2]
[406590571,1771959041854,-500.0,0.00017474,2]
[406590572,1771959041863,-500.0,0.00017474,2]
[406590573,1771959041873,-500.0,0.00017474,2]
[406590574,1771959041883,-500.0,0.00017475,2]
[406590575,1771959041892,-500.0,0.00017475,2]
[406590576,1771959041902,-500.0,0.00017475,2]
[406590577,1771959041912,-268.25985649,0.00017475,2]
[406590578,1771959041921,-500.0,0.00017475,2]
[406590579,1771959041932,-500.0,0.00017475,2]
[406590580,1771959041942,-500.0,0.00017475,2]
[406590581,1771959041951,-500.0,0.00017475,2]
[406590582,1771959041962,-500.0,0.00017475,2]
[406590583,1771959041971,-500.0,0.00017475,2]
[406590584,1771959041980,-500.0,0.00017475,2]
[406590585,1771959041990,-500.0,0.00017475,2]
[406590586,1771959041999,-500.0,0.00017475,2]
[406590587,1771959042009,-500.0,0.00017475,2]
[406590588,1771959042019,-500.0,0.00017475,2]
[406590589,1771959042029,-500.0,0.00017475,2]
[406590590,1771959042039,-500.0,0.00017475,2]
[406590591,1771959042049,-500.0,0.00017475,2]
[406590592,1771959042059,-500.0,0.00017475,2]
[406590593,1771959042069,-500.0,0.00017475,2]
[406590594,1771959042078,-500.0,0.00017475,2]
[406590595,1771959042088,-500.0,0.00017475,2]
[406590596,1771959042098,-500.0,0.00017475,2]
[406590597,1771959042107,-500.0,0.00017475,2]
[406590598,1771959042117,-753.78,0.00017475,2]
[406590599,1771959042127,-753.78,0.00017475,2]
[406590600,1771959042136,-753.78,0.00017475,2]
[406590601,1771959042146,-753.78,0.00017475,2]
[406590602,1771959042156,-500.0,0.00017475,2]
[406590603,1771959042165,-500.0,0.00017475,2]
[406590604,1771959042175,-500.0,0.00017475,2]
[406590605,1771959042185,-500.0,0.00017475,2]
[406590606,1771959042195,-1060.4623845,0.00017476,2]
[406590607,1771959042204,-487.0,0.00017476,2]
[406590608,1771959042213,-736.36,0.00017476,2]
[406590609,1771959042224,-500.0,0.0001748,2]
[406590610,1771959042370,-500.0,0.0001748,2]
[406590611,1771959042380,-500.0,0.0001748,2]
[406590612,1771959042390,-500.0,0.0001748,2]
[406590613,1771959042399,-500.0,0.0001748,2]
[406590614,1771959042408,-753.78,0.0001748,2]
[406590615,1771959042418,-500.0,0.0001748,2]
[406590616,1771959042428,-32552.9942183,0.0001761,2]
[406590617,1771959042438,-1358.73171242,0.00017638,2]
[406590618,1771959042447,-476.1,0.00017739,2]
[406590619,1771959042457,-800.0,0.00017808,2]
[406590620,1771959042466,-500.0,0.00017815,2]
[406590621,1771959042476,-500.0,0.00017815,2]
[406590622,1771959042485,-500.0,0.00017815,2]
[406590623,1771959042495,-476.1,0.00017883,2]
[406590624,1771959042504,-10000.0,0.000179,2]
[406590625,1771959042513,-3226.58210254,0.000179,2]
[406590626,1771959042523,-1358.73171242,0.000179,2]
[406590627,1771959042532,-8692.42913998,0.000179,2]
[406590628,1771959042541,-303.35094642,0.000179,2]
[406590629,1771959042551,-1513.66452837,0.000179,2]
[406590630,1771959042560,-1624.05350262,0.000179,2]
[406590631,1771959042569,-6626.21523686,0.000179,2]
[406590632,1771959042579,-32552.9942183,0.000179,2]
[406590633,1771959042588,-3987.91380909,0.000179,2]
[406590634,1771959042597,-200.0,0.00017937,2]
[406590635,1771959042607,-500.0,0.00017998,2]
[406590636,1771959042616,-500.0,0.00017998,2]
[406590637,1771959042626,-753.78,0.00017998,2]
[406590638,1771959042635,-395.88818611,0.00017998,2]
[406590639,1771959042644,-500.0,0.00017999,2]
[406590640,1771959042654,-222.67229582,0.00017999,2]
[406590641,1771959042663,-233.40706108,0.00017999,2]
[406590642,1771959042672,-196.31459131,0.00017999,2]
[406590643,1771959042682,-500.0,0.00017999,2]
[406590644,1771959042691,-500.0,0.00017999,2]
[406590645,1771959042701,-500.0,0.00017999,2]
[406590646,1771959042710,-500.0,0.00017999,2]
[406590648,1771959042720,-500.0,0.00017999,2]
[406590650,1771959042729,-336.17986232,0.00017999,2]
[406590651,1771959042738,-266.69461346,0.00017999,2]
[406590653,1771959042747,-481.5266601,0.00017999,2]
[406590655,1771959042757,-500.0,0.00017999,2]
[406590656,1771959042766,-500.0,0.00017999,2]
[406590657,1771959042776,-500.0,0.00017999,2]
[406590658,1771959042785,-500.0,0.00017999,2]
[406590659,1771959042794,-500.0,0.00017999,2]
[406590660,1771959042804,-648.33639493,0.00017999,2]
[406590661,1771959042814,-500.0,0.00017999,2]
[406590662,1771959042823,-500.0,0.00017999,2]
[406590663,1771959042832,-500.0,0.00017999,2]
[406590664,1771959042842,-500.0,0.00017999,2]
[406590665,1771959042852,-500.0,0.00017999,2]
[406590666,1771959042861,-500.0,0.00017999,2]
[406590667,1771959042871,-500.0,0.00017999,2]
[406590669,1771959042880,-500.0,0.00017999,2]
[406590670,1771959042890,-500.0,0.00017999,2]
[406590671,1771959042899,-500.0,0.00017999,2]
[406590672,1771959042908,-609.95528268,0.00017999,2]
[406590673,1771959042917,-500.0,0.00017999,2]
[406590674,1771959042927,-500.0,0.00017999,2]
[406590675,1771959042936,-332.48969422,0.00017999,2]
[406590676,1771959042945,-753.78,0.00017999,2]
[406590677,1771959042954,-753.78,0.00017999,2]
[406590678,1771959042963,-753.78,0.00017999,2]
[406590679,1771959042973,-753.78,0.00017999,2]
[406590680,1771959042982,-753.78,0.00017999,2]
[406590681,1771959042991,-753.78,0.00017999,2]
[406590682,1771959043000,-753.78,0.00017999,2]
[406590683,1771959043010,-753.78,0.00017999,2]
[406590684,1771959043020,-753.78,0.00017999,2]
[406590685,1771959043029,-753.78,0.00017999,2]
[406590686,1771959043039,-753.78,0.00017999,2]
[406590687,1771959043048,-753.78,0.00017999,2]
[406590688,1771959043058,-753.78,0.00017999,2]
[406590689,1771959043068,-753.78,0.00017999,2]
[406590690,1771959043078,-753.80338985,0.00017999,2]
[406590691,1771959043087,-378895.34630344,0.00018,2]
[406590692,1771959043189,-295.365,0.0001674,2]
[406590693,1771959043284,-204.635,0.0001674,2]
[406590694,1771959043294,-500.0,0.0001674,2]
[406590695,1771959043306,-18.2605016,0.0001674,2]
[406590696,1771959043320,-481.7394984,0.0001674,2]
[406590697,1771959043329,-500.0,0.0001674,2]
[406590698,1771959043338,-500.0,0.0001674,2]
[406590699,1771959043347,-500.0,0.0001674,2]
[406590700,1771959043356,-500.0,0.0001674,2]
[406590701,1771959043365,-500.0,0.0001674,2]
[406590702,1771959043374,-500.0,0.0001674,2]
[406590703,1771959043383,-500.0,0.0001674,2]
[406590704,1771959043393,-500.0,0.0001674,2]
[406590705,1771959043402,-500.0,0.0001674,2]
[406590706,1771959043411,-99680.05270658,0.00018,2]
[406590707,1771959043422,-12839.2045969,0.00018,2]
[406590728,1771959078541,911.47519979,0.00045561,30]
[406590729,1771959097567,483.18884841,0.00045561,30]
[406590730,1771959260145,-300.0,8.893e-05,2]
[406590731,1771959301319,1200.0,8.893e-05,2]
[406590732,1771959321989,500.0,8.793e-05,2]
[406590733,1771959451647,10832.70951267,0.00045561,120]
[406590735,1771959478256,500.0,8.794e-05,2]
[406590736,1771959691813,585.0,0.00045559,30]
[406590738,1771959805126,418.98736586,0.00045559,120]
[406590901,1771960090387,150.0,0.00045564,30]
[406590933,1771960155086,201.89668341,0.00045564,30]
[406590941,1771960212691,-213.97,9.796e-05,2]
[406590942,1771960212716,-250.0,9.834e-05,2]
[406590954,1771960232086,-1000.0,0.00010415,2]
[406590956,1771960232096,-151.58,0.00010563,2]
[406590958,1771960232107,-250.0,0.00010775,2]
[406590960,1771960232118,-250.0,0.00010775,2]
[406590962,1771960232129,-194.0122658,0.0001086,2]
[406590964,1771960232138,-166.66,0.00010959,2]
[406590966,1771960232148,-213.97,0.0001102,2]
[406590967,1771960232157,-166.66,0.00011068,2]
[406590968,1771960232166,-166.66,0.00011178,2]
[406590971,1771960232176,-132.51575498,0.00011288,2]
[406590973,1771960232190,-34.14424502,0.00011288,2]
[406590974,1771960232199,-166.66,0.00011397,2]
[406590976,1771960232208,-166.66,0.00011507,2]
[406590977,1771960232217,-151.58,0.0001162,2]
[406590978,1771960232226,-300.0,0.0001172,2]
[406590980,1771960232235,-485.95575498,0.0001172,2]
[406590982,1771960232247,-714.04424502,0.0001172,2]
[406590983,1771960232257,-274.93429558,0.00011721,2]
[406590985,1771960232266,-150.0,0.00011721,2]
[406590986,1771960232275,-500.0,0.00011721,2]
[406590988,1771960232284,-150.0,0.00011721,2]
[406590989,1771960232293,-500.0,0.00011721,2]
[406590991,1771960232303,-296.46563881,0.00011721,2]
[406590992,1771960232312,-99.71922299,0.00011721,2]
[406590994,1771960232324,-50.28077701,0.00011721,2]
[406590995,1771960232333,-150.0,0.00011721,2]
[406590996,1771960232343,-150.0,0.00011721,2]
[406590997,1771960232352,-500.0,0.00011721,2]
[406590998,1771960232362,-150.0,0.00011721,2]
[406590999,1771960232372,-1274.659,0.00011756,2]
[406591000,1771960232381,-171.13,0.00011756,2]
[406591001,1771960232391,-150.0,0.00011776,2]
[406591002,1771960232400,-500.0,0.00011776,2]
[406591003,1771960232410,-150.0,0.00011776,2]
[406591004,1771960232419,-500.0,0.00011776,2]
[406591005,1771960232428,-150.0,0.00011776,2]
[406591006,1771960232438,-150.0,0.00011776,2]
[406591007,1771960232447,-500.0,0.00011776,2]
[406591008,1771960232456,-150.0,0.00011831,2]
[406591009,1771960232465,-500.0,0.00011831,2]
[406591010,1771960232474,-202.65175273,0.00011831,2]
[406591011,1771960232483,-500.0,0.00011831,2]
[406591012,1771960232493,-150.0,0.00011831,2]
[406591013,1771960232502,-150.0,0.00011831,2]
[406591014,1771960232511,-500.0,0.00011831,2]
[406591015,1771960232520,-212.55382438,0.00011885,2]
[406591016,1771960232529,-500.0,0.00011885,2]
[406591017,1771960232538,-500.0,0.00011885,2]
[406591018,1771960232547,-150.0,0.00011885,2]
[406591019,1771960232556,-150.0,0.00011885,2]
[406591020,1771960232565,-200.0,0.00011885,2]
[406591021,1771960232575,-2500.0,0.00011896,2]
[406591022,1771960232589,-500.0,0.00011896,2]
[406591023,1771960232598,-150.0,0.0001194,2]
[406591024,1771960232609,-250.0,0.0001194,2]
[406591025,1771960232619,-8692.42913998,0.00011955,2]
[406591026,1771960232631,-303.35094642,0.00011955,2]
[406591027,1771960232641,-1513.66452837,0.00011955,2]
[406591028,1771960232651,-150.0,0.00011973,2]
[406591029,1771960232662,-1358.73171243,0.00011974,2]
[406591030,1771960232671,-29297.69479647,0.00011974,2]
[406591031,1771960232680,-305.91623601,0.00011974,2]
[406591032,1771960232689,-2828.81749026,0.00011974,2]
[406591033,1771960232707,-6626.21523686,0.00011974,2]
[406591034,1771960232718,-151.0,0.00011989,2]
[406591035,1771960232727,-151.0,0.00011989,2]
[406591036,1771960232736,-151.0,0.00011989,2]
[406591037,1771960232745,-151.0,0.00011989,2]
[406591038,1771960232755,-151.0,0.00011989,2]
[406591039,1771960232764,-151.0,0.00011989,2]
[406591040,1771960232773,-151.0,0.00011989,2]
[406591041,1771960232783,-151.0,0.00011989,2]
[406591042,1771960232792,-151.0,0.00011989,2]
[406591043,1771960232801,-151.0,0.00011989,2]
[406591044,1771960232810,-151.0,0.00011989,2]
[406591045,1771960232819,-151.0,0.00011989,2]
[406591046,1771960232828,-151.0,0.00011989,2]
[406591047,1771960232838,-151.0,0.00011989,2]
[406591048,1771960232847,-151.0,0.00011989,2]
[406591049,1771960232857,-151.0,0.00011989,2]
[406591050,1771960232866,-151.0,0.00011989,2]
[406591051,1771960232875,-275.2704529,0.00011989,2]
[406591052,1771960232885,-999.99,0.00011995,2]
[406591053,1771960232895,-299.99,0.00011995,2]
[406591054,1771960232904,-150.99,0.00011995,2]
[406591055,1771960232913,-720.0,0.00011995,2]
[406591056,1771960232923,-347.97,0.00011995,2]
[406591057,1771960232932,-9999.99,0.00011995,2]
[406591058,1771960232945,-9999.99,0.00011995,2]
[406591059,1771960232954,-217.91494634,0.00011995,2]
[406591060,1771960232964,-392344.58430301,0.00011996,2]
[406591061,1771960232977,-1003.9834,0.00011996,2]
[406591062,1771960232988,-685.86632813,0.00011996,2]
[406591063,1771960232999,-932.31905122,0.00011996,2]
[406591065,1771960238062,-615.21547425,0.00011955,2]
[406591066,1771960238169,-543.46567101,0.00011955,2]
[406591114,1771960240278,-465.37235736,0.00011955,2]
[406591115,1771960240287,-1801.75340291,0.00011996,2]
[406591116,1771960240320,-6472.45549387,0.00011996,2]
[406591117,1771960240331,-364.45209912,0.00011996,2]
[406591118,1771960242359,-5023.559258,0.00011895,2]
[406591119,1771960242369,-857122.15071086,0.00011996,2]
[406591120,1771960242572,-430.49670968,0.00011996,2]
[406591122,1771960242626,-458.87313864,0.00011996,2]
[406591150,1771960243478,-231333.79056799,0.00011996,2]
[406591151,1771960243490,-1988.8604776,0.00011996,2]
[406591152,1771960243533,-190503.94752961,0.00011996,2]
[406591153,1771960243544,-720.419996,0.00011996,2]
[406591163,1771960246007,-824.0,0.00011996,2]
[406591170,1771960246218,-2498.7,0.00011996,2]
[406591171,1771960246230,-371.52533801,0.00011996,2]
[406591172,1771960246314,-461.614895,0.00011996,2]
[406591173,1771960246330,-418.680849,0.00011996,2]
[406591174,1771960246341,-595.56076077,0.00011996,2]
[406591175,1771960246352,-922.96950846,0.00011996,2]
[406591178,1771960251938,-2500.0,0.00011996,2]
[406591179,1771960260406,-9536.03,0.00011996,2]
[406591180,1771960300461,-1019.727,0.00011756,2]
[406591181,1771960300487,-171.13,0.00011756,2]
[406591182,1771960300514,-4809.143,0.00011874,2]
[406591183,1771960668998,1322.08,6.533e-05,2]
[406591184,1771960669319,1322.08,6.763e-05,2]
[406591185,1771960669543,1322.08,6.992e-05,2]
[406591186,1771960669759,1322.08,7.221e-05,2]
[406591187,1771960669968,1322.08,7.45e-05,2]
[406591188,1771960670190,1322.08,7.68e-05,2]
[406591189,1771960670407,1322.08,7.909e-05,2]
[406591190,1771960670808,745.45,8.138e-05,2]
[406591191,1771960670829,576.63,8.138e-05,2]
[406591192,1771960671036,1322.08,8.367e-05,2]
[406591193,1771960671257,1322.08,8.597e-05,2]
[406591194,1771960671481,1322.08,8.826e-05,2]
[406591195,1771960671699,1322.08,9.055e-05,2]
[406591235,1771961244819,6072904.42146169,0.00045559,30]
[406591248,1771961432144,-1322.08,9.284e-05,2]
[406591250,1771961432155,-250.0,9.342e-05,2]
[406591252,1771961432164,-1050.81011871,9.514e-05,2]
[406591253,1771961432176,-271.26988129,9.514e-05,2]
[406591254,1771961432186,-1322.08,9.743e-05,2]
[406591255,1771961432198,-1322.08,9.972e-05,2]
[406591256,1771961432208,-1322.08,0.00010201,2]
[406591257,1771961432219,-250.0,0.00010213,2]
[406591258,1771961432229,-250.0,0.00010213,2]
[406591259,1771961432239,-268.0,0.00010428,2]
[406591260,1771961432250,-1322.08,0.0001043,2]
[406591261,1771961432260,-300.0,0.00010587,2]
[406591262,1771961432270,-263.41154921,0.00010588,2]
[406591263,1771961432283,-702.58845079,0.00010588,2]
[406591264,1771961432293,-285.36690921,0.00010609,2]
[406591265,1771961432306,-869.66570832,0.00010609,2]
[406591266,1771961432318,-510.0,0.00010609,2]
[406591267,1771961432333,-214.96738247,0.00010609,2]
[406591268,1771961432345,-1210.07639936,0.0001063,2]
[406591269,1771961432356,-182.0,0.00010657,2]
[406591270,1771961432366,-42.95621817,0.00010658,2]
[406591272,1771961432427,-107.04378183,0.00010658,2]
[406591273,1771961432437,-613.18227726,0.00010659,2]
[406591274,1771961432450,-1027.11678612,0.00010659,2]
[406591275,1771961432462,-395.00479507,0.00010659,2]
[406591276,1771961432474,-985.9,0.00010659,2]
[406591277,1771961432485,-263.41,0.00010659,2]
[406591278,1771961432497,-6343.46130654,0.00010659,2]
[406591279,1771961432508,-371.91483501,0.00010659,2]
[406591280,1771961432518,-157.82696321,0.00010659,2]
[406591281,1771961432529,-685.99457404,0.00010659,2]
[406591282,1771961432540,-719.62920142,0.00010659,2]
[406591283,1771961432552,-738.41,0.00010659,2]
[406591284,1771961432563,-442.09422963,0.00010659,2]
[406591285,1771961432575,-7167.07226802,0.00010659,2]
[406591286,1771961432587,-88.96276368,0.00010659,2]
[406591287,1771961432597,-396.45573632,0.00010659,2]
[406591288,1771961432610,-595.51496788,0.00010659,2]
[406591289,1771961432623,-8.0192958,0.00010659,2]
[406591290,1771961432634,-150.99,0.00010659,2]
[406591291,1771961432645,-151.02706611,0.0001066,2]
[406591305,1771961438326,-1171.05293389,0.0001066,2]
[406591306,1771961438336,-299.99,0.0001066,2]
[406591307,1771961438346,-150.99,0.0001066,2]
[406591308,1771961438357,-396.0,0.0001072,2]
[406591309,1771961438371,-437.0,0.00010742,2]
[406591310,1771961438381,-443.0,0.00010763,2]
[406591311,1771961438391,-303.02200372,0.00010785,2]
[406591312,1771961438401,-166.66,0.00010817,2]
[406591313,1771961438411,-205.0,0.00010821,2]
[406591314,1771961438421,-774.0,0.00010842,2]
[406591315,1771961438431,-464.0,0.00010864,2]
[406591316,1771961438440,-1322.08,0.00010889,2]
[406591317,1771961438450,-1500.0,0.00010949,2]
[406591318,1771961438460,-150.0,0.00010959,2]
[406591319,1771961438470,-150.0,0.00010959,2]
[406591320,1771961438480,-166.66,0.00011174,2]
[406591321,1771961438490,-2142.07,0.00011233,2]
[406591322,1771961438500,-5831.55312583,0.000113,2]
[406591323,1771961438510,-815.782,0.00011308,2]
[406591324,1771961438520,-171.1314637,0.00011308,2]
[406591325,1771961438531,-1215.14635473,0.00011395,2]
[406591331,1771961440591,-4386.02600372,0.00011395,2]
[406591332,1771961440607,-11601.81804155,0.00011395,2]
[406591333,1771961440617,-905.82114162,0.00011431,2]
[406591334,1771961440626,-4417.47682458,0.00011431,2]
[406591335,1771961440636,-202.23396428,0.00011431,2]
[406591336,1771961440646,-1093.53631937,0.00011431,2]
[406591337,1771961440656,-1040.9160401,0.00011494,2]
[406591338,1771961440665,-1040.9160401,0.00011494,2]
[406591339,1771961440676,-1040.9160401,0.00011494,2]
[406591340,1771961440685,-1040.9160401,0.00011494,2]
[406591341,1771961440694,-1040.9160401,0.00011494,2]
[406591342,1771961440704,-1040.9160401,0.00011494,2]
[406591343,1771961440714,-1040.9160401,0.00011494,2]
[406591344,1771961440723,-1040.9160401,0.00011494,2]
[406591345,1771961440733,-1040.9160401,0.00011494,2]
[406591346,1771961440743,-1040.9160401,0.00011494,2]
[406591347,1771961440755,-1040.9160401,0.00011494,2]
[406591348,1771961440764,-1040.9160401,0.00011494,2]
[406591349,1771961440774,-1040.9160401,0.00011494,2]
[406591350,1771961440784,-1040.9160401,0.00011494,2]
[406591351,1771961440793,-1040.9160401,0.00011494,2]
[406591352,1771961440803,-1040.9160401,0.00011494,2]
[406591353,1771961440813,-1040.9160401,0.00011494,2]
[406591354,1771961440822,-1040.9160401,0.00011494,2]
[406591355,1771961440832,-1040.9160401,0.00011494,2]
[406591356,1771961440841,-1040.9160401,0.00011494,2]
[406591357,1771961440850,-1040.9160401,0.00011494,2]
[406591358,1771961440860,-1040.9160401,0.00011494,2]
[406591359,1771961440869,-1040.9160401,0.00011494,2]
[406591360,1771961440878,-1040.9160401,0.00011494,2]
[406591361,1771961440887,-1040.9160401,0.00011494,2]
[406591362,1771961440897,-1040.9160401,0.00011494,2]
[406591363,1771961440906,-1040.9160401,0.00011494,2]
[406591364,1771961440915,-1040.9160401,0.00011494,2]
[406591365,1771961440924,-1040.9160401,0.00011494,2]
[406591366,1771961440934,-1040.9160401,0.00011494,2]
[406591367,1771961440947,-1040.9160401,0.00011494,2]
[406591368,1771961440956,-1040.9160401,0.00011494,2]
[406591369,1771961440966,-1040.9160401,0.00011494,2]
[406591370,1771961440975,-1040.9160401,0.00011494,2]
[406591371,1771961440984,-1040.9160401,0.00011494,2]
[406591373,1771961440993,-1040.9160401,0.00011494,2]
[406591375,1771961441003,-1040.9160401,0.00011494,2]
[406591377,1771961441015,-1040.9160401,0.00011494,2]
[406591379,1771961441034,-1040.9160401,0.00011494,2]
[406591381,1771961441044,-1040.9160401,0.00011494,2]
[406591383,1771961441053,-1040.9160401,0.00011494,2]
[406591384,1771961441062,-1040.9160401,0.00011494,2]
[406591385,1771961441071,-1040.9160401,0.00011494,2]
[406591386,1771961441080,-1040.9160401,0.00011494,2]
[406591387,1771961441089,-1040.9160401,0.00011494,2]
[406591388,1771961441106,-1040.9160401,0.00011494,2]
[406591389,1771961441116,-1040.9160401,0.00011494,2]
[406591390,1771961441127,-1040.9160401,0.00011494,2]